fUSD/lending_fUSD_20250427
["ID","MTS","AMOUNT","RATE_DAILY","PERIOD"]
[359122040,1745718632278,-500.0,0.00019673,2]
[359122041,1745718632288,-506.71499656,0.00019673,2]
[359122042,1745718632298,-161.32,0.00019681,2]
[359122043,1745718632309,-207.4,0.00019681,2]
[359122044,1745718632320,-249.96,0.00019682,2]
[359122045,1745718632330,-249.96,0.00019682,2]
[359122046,1745718632339,-400.0,0.0001969,2]
[359122047,1745718632348,-400.0,0.0001969,2]
[359122048,1745718632358,-12.71846355,0.0001969,2]
[359122049,1745718632370,-430.28336934,0.0001969,2]
[359122050,1745718632380,-500.0,0.0001969,2]
[359122051,1745718632390,-500.0,0.0001969,2]
[359122052,1745718632399,-250.51003521,0.0001969,2]
[359122053,1745718632410,-106875.54275618,0.00019691,2]
[359122054,1745718632422,-1800.0,0.00019691,2]
[359122055,1745718632434,-1231.18295853,0.00019691,2]
[359122059,1745718632476,-6736.93097377,0.00019691,2]
[359122065,1745718632532,-176.09287995,0.0001969,2]
[359122067,1745718632542,-1283.61495711,0.00019691,2]
[359122070,1745718632554,-2101.89383119,0.00019691,2]
[359122072,1745718632565,-595.63987481,0.00019691,2]
[359122076,1745718632600,-403.20111828,0.00019691,2]
[359122078,1745718632611,-370.04022624,0.00019691,2]
[359122080,1745718632622,-9455.45973701,0.00019691,2]
[359122083,1745718632634,-9860.3378847,0.00019691,2]
[359122165,1745718635503,150.0,0.00018769,7]
[359122167,1745718638061,-436.26452625,0.00019691,2]
[359122168,1745718638114,-1800.78968099,0.00019691,2]
[359122169,1745718638126,-7870.6007618,0.00019691,2]
[359122170,1745718638168,-39737.88853031,0.00019691,2]
[359122171,1745718638180,-1088.00514096,0.00019691,2]
[359122172,1745718638225,-800.64323399,0.00019691,2]
[359122173,1745718638235,-208.63845243,0.00019691,2]
[359122174,1745718638246,-1344.09358922,0.00019691,2]
[359122175,1745718638258,-867.01175721,0.00019691,2]
[359122176,1745718638276,-1036.01785492,0.00019691,2]
[359122177,1745718638288,-1803.70000001,0.00019691,2]
[359122178,1745718638384,-1214.92789561,0.00019691,2]
[359122372,1745718640527,-272.56061113,0.00019691,2]
[359122378,1745718640575,-2000.0,0.00019691,2]
[359122664,1745718643112,-400.0,0.0001969,2]
[359122667,1745718643122,-25098.77070057,0.00019691,2]
[359122671,1745718643135,-34518.65196714,0.00019691,2]
[359122696,1745718643359,-28981.42942138,0.00019691,2]
[359122961,1745718646037,-349.85644514,0.00019591,2]
[359122963,1745718646047,-304.23227207,0.0001969,2]
[359122995,1745718646411,-95.76772793,0.0001969,2]
[359122996,1745718646421,-9725.64445788,0.00019691,2]
[359122997,1745718646432,-400.0,0.00019691,2]
[359122998,1745718646443,-400.0,0.00019691,2]
[359122999,1745718646454,-400.0,0.00019691,2]
[359123000,1745718646464,-400.0,0.00019691,2]
[359123001,1745718646475,-454.02,0.00019691,2]
[359123002,1745718646485,-400.0,0.00019691,2]
[359123003,1745718646495,-400.0,0.00019691,2]
[359123004,1745718646506,-467.8886066,0.00019691,2]
[359123005,1745718646516,-400.0,0.00019691,2]
[359123006,1745718646526,-400.0,0.00019691,2]
[359123007,1745718646537,-751.46,0.00019691,2]
[359123008,1745718646547,-400.0,0.00019691,2]
[359123009,1745718646557,-400.0,0.00019691,2]
[359123010,1745718646567,-400.0,0.00019691,2]
[359123011,1745718646577,-400.0,0.00019691,2]
[359123012,1745718646587,-400.0,0.00019691,2]
[359123013,1745718646598,-400.0,0.00019691,2]
[359123014,1745718646609,-207.5627052,0.00019691,2]
[359123015,1745718646636,-192.4372948,0.00019691,2]
[359123017,1745718646646,-400.0,0.00019691,2]
[359123019,1745718646656,-126.80134172,0.00019691,2]
[359123022,1745718646669,-273.19865828,0.00019691,2]
[359123024,1745718646680,-400.0,0.00019691,2]
[359123026,1745718646691,-400.0,0.00019691,2]
[359123028,1745718646701,-464.64,0.00019691,2]
[359123030,1745718646711,-395.482223,0.00019691,2]
[359123032,1745718646729,-4.517777,0.00019691,2]
[359123034,1745718646739,-400.0,0.00019691,2]
[359123036,1745718646749,-465.76626401,0.00019691,2]
[359123038,1745718646759,-400.0,0.00019691,2]
[359123040,1745718646769,-400.0,0.00019691,2]
[359123043,1745718646779,-400.0,0.00019691,2]
[359123045,1745718646789,-249.153,0.00019691,2]
[359123046,1745718646800,-400.0,0.00019691,2]
[359123048,1745718646810,-400.0,0.00019691,2]
[359123050,1745718646821,-400.0,0.00019691,2]
[359123051,1745718646831,-400.0,0.00019691,2]
[359123052,1745718646841,-400.0,0.00019691,2]
[359123053,1745718646851,-400.0,0.00019691,2]
[359123054,1745718646862,-11535.757407,0.00019691,2]
[359123055,1745718646872,-400.0,0.00019691,2]
[359123057,1745718646882,-400.0,0.00019691,2]
[359123059,1745718646893,-500.0,0.00019691,2]
[359123061,1745718646904,-650.91,0.00019691,2]
[359123063,1745718646914,-495.990783,0.00019691,2]
[359123064,1745718646924,-604.81,0.00019691,2]
[359123066,1745718646933,-402.05,0.00019691,2]
[359123068,1745718646943,-485.28,0.00019691,2]
[359123070,1745718646953,-400.0,0.00019691,2]
[359123072,1745718646963,-400.0,0.00019691,2]
[359123074,1745718646973,-400.0,0.00019691,2]
[359123076,1745718646984,-476.91339736,0.00019691,2]
[359123078,1745718646995,-453.04,0.00019691,2]
[359123081,1745718647006,-494.32,0.00019691,2]
[359123083,1745718647017,-400.0,0.00019691,2]
[359123085,1745718647027,-406.59330836,0.00019691,2]
[359123087,1745718647037,-400.0,0.00019691,2]
[359123089,1745718647047,-400.0,0.00019691,2]
[359123091,1745718647056,-400.0,0.00019691,2]
[359123093,1745718647067,-400.0,0.00019691,2]
[359123095,1745718647077,-400.0,0.00019691,2]
[359123097,1745718647087,-400.0,0.00019691,2]
[359123099,1745718647097,-400.0,0.00019691,2]
[359123101,1745718647106,-400.0,0.00019691,2]
[359123103,1745718647116,-327.00321277,0.00019691,2]
[359123107,1745718647144,-17.12135775,0.00019691,2]
[359123109,1745718647154,-400.0,0.00019691,2]
[359123111,1745718647166,-400.0,0.00019691,2]
[359123113,1745718647176,-239.75617646,0.00019691,2]
[359123115,1745718647186,-400.0,0.00019691,2]
[359123117,1745718647196,-400.0,0.00019691,2]
[359123119,1745718647205,-400.0,0.00019691,2]
[359123121,1745718647215,-427.75,0.00019691,2]
[359123123,1745718647225,-429.96801023,0.00019691,2]
[359123125,1745718647234,-400.0,0.00019691,2]
[359123127,1745718647245,-400.0,0.00019691,2]
[359123129,1745718647255,-400.0,0.00019691,2]
[359123131,1745718647265,-400.0,0.00019691,2]
[359123133,1745718647274,-400.0,0.00019691,2]
[359123135,1745718647284,-499.73,0.00019691,2]
[359123137,1745718647293,-400.0,0.00019691,2]
[359123139,1745718647303,-516.43613916,0.00019691,2]
[359123141,1745718647313,-400.0,0.00019691,2]
[359123143,1745718647323,-400.0,0.00019691,2]
[359123145,1745718647333,-400.0,0.00019691,2]
[359123147,1745718647343,-400.0,0.00019691,2]
[359123149,1745718647353,-400.0,0.00019691,2]
[359123151,1745718647363,-400.0,0.00019691,2]
[359123153,1745718647373,-400.0,0.00019691,2]
[359123155,1745718647383,-400.0,0.00019691,2]
[359123157,1745718647393,-250.0,0.00019691,2]
[359123159,1745718647403,-153.05071532,0.00019691,2]
[359123161,1745718647416,-246.94928468,0.00019691,2]
[359123163,1745718647425,-400.0,0.00019691,2]
[359123165,1745718647436,-400.0,0.00019691,2]
[359123167,1745718647447,-400.0,0.00019691,2]
[359123169,1745718647457,-905.76271252,0.00019691,2]
[359123172,1745718647469,-21637.104,0.00019691,2]
[359123174,1745718647481,-4731.8711093,0.00019691,2]
[359123176,1745718647493,-20704.13897195,0.00019691,2]
[359123178,1745718647505,-1707.57640264,0.00019691,2]
[359123182,1745718647532,-18860.70680359,0.00019691,2]
[359123184,1745718647542,-400.0,0.00019691,2]
[359123185,1745718647552,-400.0,0.00019691,2]
[359123187,1745718647562,-400.0,0.00019691,2]
[359123189,1745718647572,-174.87118562,0.00019691,2]
[359123191,1745718647584,-400.0,0.00019691,2]
[359123193,1745718647594,-400.0,0.00019691,2]
[359123195,1745718647604,-400.0,0.00019691,2]
[359123196,1745718647613,-400.0,0.00019691,2]
[359123198,1745718647624,-411.95,0.00019691,2]
[359123200,1745718647633,-990.72,0.00019691,2]
[359123202,1745718647644,-400.0,0.00019691,2]
[359123203,1745718647654,-400.0,0.00019691,2]
[359123204,1745718647664,-1645.81,0.00019691,2]
[359123206,1745718647674,-400.0,0.00019691,2]
[359123208,1745718647684,-400.0,0.00019691,2]
[359123210,1745718647694,-400.0,0.00019691,2]
[359123211,1745718647703,-400.0,0.00019691,2]
[359123213,1745718647713,-370.98991121,0.00019691,2]
[359123214,1745718647722,-400.0,0.00019691,2]
[359123215,1745718647732,-400.0,0.00019691,2]
[359123216,1745718647742,-400.0,0.00019691,2]
[359123217,1745718647752,-421.6,0.00019691,2]
[359123218,1745718647762,-634.15,0.00019691,2]
[359123219,1745718647772,-400.0,0.00019691,2]
[359123220,1745718647781,-400.0,0.00019691,2]
[359123221,1745718647792,-550.23,0.00019691,2]
[359123223,1745718647802,-678.4,0.00019691,2]
[359123225,1745718647812,-400.0,0.00019691,2]
[359123227,1745718647822,-400.0,0.00019691,2]
[359123228,1745718647831,-400.0,0.00019691,2]
[359123230,1745718647842,-184.12891685,0.00019691,2]
[359123232,1745718647853,-400.0,0.00019691,2]
[359123234,1745718647863,-400.0,0.00019691,2]
[359123236,1745718647874,-411.5,0.00019691,2]
[359123238,1745718647884,-400.0,0.00019691,2]
[359123240,1745718647894,-812.26,0.00019691,2]
[359123242,1745718647905,-544.79,0.00019691,2]
[359123244,1745718647915,-400.0,0.00019691,2]
[359123245,1745718647925,-451.5,0.00019691,2]
[359123247,1745718647935,-521.72,0.00019691,2]
[359123249,1745718647944,-400.0,0.00019691,2]
[359123251,1745718647954,-464.18,0.00019691,2]
[359123253,1745718647963,-409.06,0.00019691,2]
[359123255,1745718647974,-400.0,0.00019691,2]
[359123257,1745718647984,-162.7131029,0.00019691,2]
[359123258,1745718647995,-400.0,0.00019691,2]
[359123260,1745718648005,-620.37,0.00019691,2]
[359123262,1745718648016,-500.0,0.00019691,2]
[359123263,1745718648025,-430.6718814,0.00019691,2]
[359123265,1745718648035,-400.0,0.00019691,2]
[359123267,1745718648045,-400.0,0.00019691,2]
[359123268,1745718648055,-400.0,0.00019691,2]
[359123270,1745718648066,-400.0,0.00019691,2]
[359123272,1745718648077,-574.04,0.00019691,2]
[359123274,1745718648087,-400.0,0.00019691,2]
[359123275,1745718648097,-400.0,0.00019691,2]
[359123277,1745718648109,-400.0,0.00019691,2]
[359123279,1745718648119,-400.0,0.00019691,2]
[359123281,1745718648130,-400.0,0.00019691,2]
[359123284,1745718648207,-400.0,0.00019691,2]
[359123285,1745718648218,-400.0,0.00019691,2]
[359123286,1745718648229,-400.0,0.00019691,2]
[359123287,1745718648239,-1502.54,0.00019691,2]
[359123288,1745718648248,-400.0,0.00019691,2]
[359123289,1745718648259,-400.0,0.00019691,2]
[359123290,1745718648269,-400.0,0.00019691,2]
[359123291,1745718648278,-1700.51,0.00019691,2]
[359123292,1745718648287,-400.0,0.00019691,2]
[359123293,1745718648296,-400.0,0.00019691,2]
[359123294,1745718648306,-380.64505207,0.00019691,2]
[359123295,1745718648315,-281.1043724,0.00019691,2]
[359123296,1745718648325,-400.0,0.00019691,2]
[359123297,1745718648334,-410.82783962,0.00019691,2]
[359123298,1745718648343,-441.32,0.00019691,2]
[359123299,1745718648353,-400.0,0.00019691,2]
[359123300,1745718648363,-400.0,0.00019691,2]
[359123301,1745718648373,-433.48,0.00019691,2]
[359123302,1745718648383,-552.03,0.00019691,2]
[359123304,1745718648393,-400.0,0.00019691,2]
[359123306,1745718648403,-400.0,0.00019691,2]
[359123307,1745718648412,-400.0,0.00019691,2]
[359123309,1745718648423,-400.0,0.00019691,2]
[359123311,1745718648433,-400.0,0.00019691,2]
[359123312,1745718648443,-405.49,0.00019691,2]
[359123314,1745718648452,-639.43,0.00019691,2]
[359123316,1745718648462,-400.0,0.00019691,2]
[359123317,1745718648471,-400.0,0.00019691,2]
[359123319,1745718648480,-427.88,0.00019691,2]
[359123321,1745718648490,-400.0,0.00019691,2]
[359123322,1745718648500,-400.0,0.00019691,2]
[359123324,1745718648510,-400.0,0.00019691,2]
[359123326,1745718648519,-400.0,0.00019691,2]
[359123327,1745718648529,-400.0,0.00019691,2]
[359123329,1745718648540,-400.0,0.00019691,2]
[359123331,1745718648549,-400.0,0.00019691,2]
[359123332,1745718648560,-400.0,0.00019691,2]
[359123334,1745718648570,-400.0,0.00019691,2]
[359123336,1745718648580,-556.82,0.00019691,2]
[359123338,1745718648590,-468.58,0.00019691,2]
[359123340,1745718648599,-662.33,0.00019691,2]
[359123342,1745718648611,-515.99,0.00019691,2]
[359123343,1745718648622,-400.0,0.00019691,2]
[359123345,1745718648632,-400.0,0.00019691,2]
[359123347,1745718648642,-231.22930691,0.00019691,2]
[359123349,1745718648651,-2827.6,0.00019691,2]
[359123350,1745718648662,-400.0,0.00019691,2]
[359123352,1745718648671,-534.7,0.00019691,2]
[359123354,1745718648681,-400.0,0.00019691,2]
[359123355,1745718648690,-11336.07616544,0.00019691,2]
[359123357,1745718648705,-20450.95612747,0.00019691,2]
[359123406,1745718665417,239.47,0.00018811,2]
[359123407,1745718747460,173.5,0.00018796,2]
[359123408,1745718747841,173.5,0.00025062,120]
[359123409,1745718748046,173.5,0.00028195,120]
[359123410,1745718824173,1000.0,0.00019,6]
[359123411,1745718826383,2000.0,0.000191,6]
[359123412,1745718828731,3000.0,0.000192,7]
[359123413,1745718830729,4100.0,0.000193,7]
[359123414,1745718832833,5100.0,0.000194,7]
[359123415,1745718834948,1000.0,0.000195,7]
[359123416,1745718837055,1000.0,0.000196,7]
[359123417,1745718839469,1000.0,0.000197,7]
[359123418,1745718841299,1000.0,0.000198,7]
[359123419,1745718843459,1400.0,0.000199,7]
[359123420,1745718881962,200.0,0.0001881,2]
[359123421,1745718931817,543.34,0.00018728,2]
[359123422,1745719015483,150.0,0.00018701,2]
[359123423,1745719047260,151.0,0.00019692,7]
[359123424,1745719047693,151.0,0.00019692,7]
[359123425,1745719048093,151.0,0.00019692,7]
[359123426,1745719049128,151.0,0.00019692,7]
[359123427,1745719049852,151.0,0.00019692,7]
[359123428,1745719050018,151.0,0.00019692,7]
[359123429,1745719050461,151.0,0.00019692,7]
[359123430,1745719050900,151.0,0.00019692,7]
[359123431,1745719051296,151.0,0.00019692,7]
[359123432,1745719082741,362.6,0.00016773,2]
[359123433,1745719083577,362.6,0.00019037,2]
[359123434,1745719084592,332.042711,0.0003698,120]
[359123435,1745719089744,-167.51,0.00019372,2]
[359123436,1745719089768,-79.75680179,0.00019431,2]
[359123437,1745719100535,-120.24319821,0.00019431,2]
[359123438,1745719122042,1000.0,0.00018709,2]
[359123439,1745719166518,218.18,0.00014955,2]
[359123440,1745719176081,500.0,0.00036986,60]
[359123441,1745719206327,500.0,0.00036986,60]
[359123442,1745719223593,528.64,0.00019178,2]
[359123443,1745719258259,500.0,0.00036986,60]
[359123444,1745719271846,500.0,0.00036986,60]
[359123445,1745719282454,500.0,0.00036986,60]
[359123446,1745719292691,500.0,0.00036986,60]
[359123447,1745719298929,500.0,0.00036986,60]
[359123448,1745719308719,652.81911866,0.00036986,60]
[359123450,1745719447008,-151.0,0.00019431,2]
[359123451,1745719447032,-6.1831965,0.00019431,2]
[359123452,1745719451947,-144.8168035,0.00019431,2]
[359123453,1745719451972,-151.0,0.00019431,2]
[359123454,1745719451997,-104.1831965,0.00019458,2]
[359123455,1745719456878,-95.8168035,0.00019458,2]
[359123456,1745719456903,-97.9431965,0.00019458,2]
[359123457,1745719463619,-54.95091938,0.00019458,2]
[359123458,1745719518962,-153.72353665,0.00019374,2]
[359123459,1745719524834,150.0,0.00018,2]
[359123460,1745719524901,150.0,0.00019,2]
[359123461,1745719524940,150.0,0.0002,4]
[359123462,1745719526379,-256.58807032,0.00019374,2]
[359123463,1745719531893,194.46,0.000187,2]
[359123464,1745719641920,250.0,0.00018669,2]
[359123467,1745719680331,508.0,0.000369,60]
[359123468,1745719698893,500.0,0.000369,120]
[359123469,1745719706126,500.0,0.000369,120]
[359123470,1745719736878,500.0,0.000369,60]
[359123471,1745719739408,150.0,0.00018663,7]
[359123475,1745719798176,179.66614094,0.000369,60]
[359123476,1745719802434,2000.0,0.0002,4]
[359123492,1745719832238,-162.34659825,0.00019399,2]
[359123493,1745719832249,-151.0,0.00019458,2]
[359123494,1745719832259,-200.0,0.00019473,2]
[359123495,1745719832270,-250.0,0.00019473,2]
[359123496,1745719832280,-200.0,0.00019487,2]
[359123497,1745719832290,-807.65002272,0.00019491,2]
[359123498,1745719832300,-274.40139814,0.00019499,2]
[359123499,1745719832369,-802.39049804,0.00019499,2]
[359123500,1745719832408,-123.20810382,0.00019499,2]
[359123501,1745719832419,-300.0,0.00019499,2]
[359123502,1745719832430,-300.0,0.00019499,2]
[359123503,1745719832440,-643.1756,0.000195,2]
[359123504,1745719832450,-8160.6783,0.000195,2]
[359123505,1745719832460,-1812.8802,0.000195,2]
[359123506,1745719832471,-162.34659825,0.000195,2]
[359123507,1745719832480,-175.03463525,0.00019579,2]
[359123508,1745719832491,-463.13508544,0.00019581,2]
[359123509,1745719832501,-12475.4495,0.00019591,2]
[359123510,1745719832512,-326.36987035,0.00019599,2]
[359123511,1745719832522,-186.45745654,0.00019599,2]
[359123512,1745719832532,-73229.76730243,0.000196,2]
[359123513,1745719832634,-1613.14501938,0.000196,2]
[359123514,1745719832649,-2105.15450389,0.000196,2]
[359123515,1745719832661,-2190.57097038,0.000196,2]
[359123523,1745719838303,-1600.94212731,0.000196,2]
[359123524,1745719838314,-868.03,0.000196,2]
[359123525,1745719838409,-754.94554677,0.000196,2]
[359123526,1745719838464,-6129.88,0.000196,2]
[359123527,1745719838477,-1311.45573015,0.000196,2]
[359123528,1745719838489,-2824.86,0.000196,2]
[359123701,1745719840462,-29917.12361948,0.000196,2]
[359123704,1745719840475,-30543.17964422,0.000196,2]
[359123706,1745719840484,-207.73693272,0.000196,2]
[359123708,1745719840494,-292.91470741,0.000196,2]
[359123710,1745719840504,-463.1350854,0.00019616,2]
[359123712,1745719840514,-463.1350854,0.00019652,2]
[359123714,1745719840524,-500.0,0.00019673,2]
[359123716,1745719840535,-500.0,0.00019673,2]
[359123718,1745719840545,-500.0,0.00019673,2]
[359123720,1745719840555,-19220.2218521,0.00019677,2]
[359123722,1745719840567,-207.4,0.00019678,2]
[359123724,1745719840578,-400.0,0.00019679,2]
[359123726,1745719840587,-400.0,0.00019679,2]
[359123728,1745719840599,-435.1,0.00019679,2]
[359123730,1745719840608,-400.0,0.00019679,2]
[359123732,1745719840619,-19280.08915033,0.0001968,2]
[359123735,1745719840643,-2000.0,0.0001968,2]
[359123737,1745719840655,-3561.3653477,0.0001968,2]
[359123765,1745719840923,-8261.93562539,0.0001968,2]
[359123768,1745719840935,-3862.02358705,0.0001968,2]
[359123776,1745719841007,-713.00779166,0.0001968,2]
[359123778,1745719841019,-321.419,0.0001968,2]
[359123780,1745719841030,-1493.27209043,0.0001968,2]
[359124032,1745719843465,-400.0,0.00019679,2]
[359124034,1745719843476,-2109.16923208,0.0001968,2]
[359124043,1745719843546,-1679.91962656,0.0001968,2]
[359124272,1745719846199,-244.91,0.00019681,2]
[359124274,1745719846210,-244.91,0.00019681,2]
[359124276,1745719846220,-175.03463524,0.00019686,2]
[359124278,1745719846230,-463.1350854,0.00019687,2]
[359124279,1745719846240,-400.0,0.0001969,2]
[359124281,1745719846251,-400.0,0.0001969,2]
[359124283,1745719846260,-400.0,0.0001969,2]
[359124285,1745719846270,-400.0,0.0001969,2]
[359124287,1745719846280,-400.0,0.0001969,2]
[359124289,1745719846290,-422.91,0.0001969,2]
[359124291,1745719846300,-1128.89,0.0001969,2]
[359124292,1745719846310,-400.0,0.0001969,2]
[359124294,1745719846320,-400.0,0.0001969,2]
[359124296,1745719846329,-562.57,0.0001969,2]
[359124298,1745719846339,-400.0,0.0001969,2]
[359124299,1745719846349,-410.19,0.0001969,2]
[359124301,1745719846359,-400.0,0.0001969,2]
[359124303,1745719846368,-400.0,0.0001969,2]
[359124305,1745719846378,-400.0,0.0001969,2]
[359124307,1745719846389,-400.0,0.0001969,2]
[359124309,1745719846398,-2166.52,0.0001969,2]
[359124311,1745719846408,-400.0,0.0001969,2]
[359124312,1745719846417,-194.19204898,0.0001969,2]
[359124313,1745719846428,-400.0,0.0001969,2]
[359124314,1745719846438,-400.0,0.0001969,2]
[359124315,1745719846448,-400.0,0.0001969,2]
[359124316,1745719846459,-555.11,0.0001969,2]
[359124317,1745719846469,-489.34,0.0001969,2]
[359124318,1745719846479,-400.0,0.0001969,2]
[359124319,1745719846488,-611.4,0.0001969,2]
[359124320,1745719846498,-659.27,0.0001969,2]
[359124321,1745719846508,-400.0,0.0001969,2]
[359124322,1745719846519,-507.62,0.0001969,2]
[359124323,1745719846529,-407.51000919,0.0001969,2]
[359124324,1745719846538,-400.0,0.0001969,2]
[359124325,1745719846547,-400.0,0.0001969,2]
[359124326,1745719846557,-400.0,0.0001969,2]
[359124327,1745719846567,-400.0,0.0001969,2]
[359124328,1745719846579,-400.0,0.0001969,2]
[359124329,1745719846588,-400.0,0.0001969,2]
[359124330,1745719846597,-537.63,0.0001969,2]
[359124331,1745719846607,-400.0,0.0001969,2]
[359124332,1745719846618,-169.57461258,0.0001969,2]
[359124333,1745719846627,-400.0,0.0001969,2]
[359124335,1745719846636,-495.56,0.0001969,2]
[359124337,1745719846647,-400.0,0.0001969,2]
[359124339,1745719846656,-400.0,0.0001969,2]
[359124341,1745719846666,-615.54,0.0001969,2]
[359124343,1745719846676,-400.0,0.0001969,2]
[359124345,1745719846686,-400.0,0.0001969,2]
[359124347,1745719846696,-151.0,0.0001969,2]
[359124349,1745719846706,-573.46,0.0001969,2]
[359124351,1745719846716,-400.0,0.0001969,2]
[359124353,1745719846725,-2565.86,0.0001969,2]
[359124355,1745719846734,-151.0,0.0001969,2]
[359124357,1745719846746,-151.0,0.0001969,2]
[359124359,1745719846755,-151.0,0.0001969,2]
[359124361,1745719846765,-400.0,0.0001969,2]
[359124363,1745719846774,-400.0,0.0001969,2]
[359124365,1745719846784,-159.022986,0.0001969,2]
[359124367,1745719846794,-151.0,0.0001969,2]
[359124369,1745719846803,-152.523539,0.0001969,2]
[359124371,1745719846815,-794.7,0.0001969,2]
[359124373,1745719846825,-155.235884,0.0001969,2]
[359124375,1745719846835,-742.21,0.0001969,2]
[359124377,1745719846845,-400.0,0.0001969,2]
[359124379,1745719846855,-400.0,0.0001969,2]
[359124381,1745719846864,-151.0,0.0001969,2]
[359124383,1745719846874,-400.0,0.0001969,2]
[359124385,1745719846884,-499.39,0.0001969,2]
[359124387,1745719846894,-151.881129,0.0001969,2]
[359124389,1745719846903,-152.200196,0.0001969,2]
[359124391,1745719846913,-537.54,0.0001969,2]
[359124393,1745719846922,-400.0,0.0001969,2]
[359124395,1745719846932,-520.71,0.0001969,2]
[359124397,1745719846943,-151.0,0.0001969,2]
[359124398,1745719846952,-153.51782,0.0001969,2]
[359124399,1745719846962,-400.0,0.0001969,2]
[359124400,1745719846971,-400.0,0.0001969,2]
[359124401,1745719846981,-525.25,0.0001969,2]
[359124402,1745719846990,-433.05,0.0001969,2]
[359124403,1745719847000,-227.645856,0.0001969,2]
[359124404,1745719847009,-227.645856,0.0001969,2]
[359124405,1745719847019,-550.075869,0.0001969,2]
[359124406,1745719847028,-550.075869,0.0001969,2]
[359124407,1745719847037,-500.0,0.0001969,2]
[359124408,1745719847047,-500.0,0.0001969,2]
[359124409,1745719847056,-150.0,0.0001969,2]
[359124410,1745719847067,-500.0,0.0001969,2]
[359124411,1745719847076,-7551.39070819,0.00019691,2]
[359124436,1745719847413,-16949.12435452,0.00019691,2]
[359124438,1745719847425,-2654.69467144,0.00019691,2]
[359124440,1745719847437,-8796.95412139,0.00019691,2]
[359124442,1745719847448,-13123.22704644,0.00019691,2]
[359124446,1745719847470,-400.0,0.00019679,2]
[359124448,1745719847480,-489.04999999,0.00019691,2]
[359124450,1745719847492,-1656.90474624,0.00019691,2]
[359124453,1745719847514,-4623.11615964,0.00019691,2]
[359124455,1745719847526,-336.88097855,0.00019691,2]
[359124458,1745719847543,-293.95,0.00019691,2]
[359124460,1745719847554,-942.0,0.00019691,2]
[359124464,1745719847583,-3991.5756376,0.0001968,2]
[359124466,1745719847594,-5209.09888455,0.0001968,2]
[359124468,1745719847607,-5415.68958026,0.0001968,2]
[359124756,1745719940175,243.49,0.00018737,2]
[359124758,1745720010306,271.67,0.00018724,2]
[359124759,1745720044838,175.68793152,0.0001927,2]
[359124760,1745720146913,200.0,0.0001872,2]
[359124761,1745720259854,422.91,0.00019178,2]
[359124762,1745720425640,250.0,0.00017,2]
[359124763,1745720426704,300.0,0.00019,2]
[359124764,1745720464833,326.34,0.000168,2]
[359124765,1745720465022,326.34,0.00019064,2]
[359124766,1745720481308,800.0,0.00019,6]
[359124767,1745720483413,1700.0,0.000191,6]
[359124768,1745720485659,2600.0,0.000192,7]
[359124769,1745720487760,3400.0,0.000193,7]
[359124770,1745720489866,4300.0,0.000194,7]
[359124771,1745720491959,800.0,0.000195,7]